fUSD/lending_fUSD_20260530
["ID","MTS","AMOUNT","RATE_DAILY","PERIOD"]
[423475696,1780155161000,-500.0,0.00028767,120]
[423475697,1780155161000,-649.74161721,0.00028767,120]
[423475701,1780155161000,-170.25,0.00028767,14]
[423475704,1780155161000,-2140.64,0.00028838,2]
[423475698,1780155161000,-500.0,0.00028767,2]
[423475702,1780155161000,-6005.11,0.00028767,2]
[423475700,1780155161000,-170.24,0.00028767,14]
[423475699,1780155161000,-170.24,0.00028767,14]
[423475703,1780155161000,-1970.92,0.00028803,7]
[423475706,1780155161000,-150.0,0.00028855,2]
[423475716,1780155161000,-210.0,0.00028986,2]
[423475715,1780155161000,-471.3346176,0.00028971,2]
[423475708,1780155161000,-150.0,0.00028855,2]
[423475710,1780155161000,-150.0,0.00028897,2]
[423475705,1780155161000,-2140.17,0.00028838,2]
[423475711,1780155161000,-164.0,0.000289,21]
[423475709,1780155161000,-200.0,0.00028875,2]
[423475713,1780155161000,-1229.0,0.00028965,6]
[423475707,1780155161000,-150.0,0.00028855,2]
[423475712,1780155161000,-200.0,0.00028931,2]
[423475714,1780155161000,-32177.98298176,0.0002897,6]
[423475717,1780155161000,-2383.13713031,0.00029,2]
[423475659,1780155161000,-267.19494513,0.00028365,2]
[423475690,1780155161000,-500.0,0.00028767,120]
[423475689,1780155161000,-500.0,0.00028767,120]
[423475718,1780155161000,-11591.88,0.00029,2]
[423475688,1780155161000,-500.0,0.00028767,120]
[423475663,1780155161000,-319.39544805,0.00028365,2]
[423475658,1780155161000,-191.21650272,0.00028365,2]
[423475661,1780155161000,-161.17158311,0.00028365,2]
[423475660,1780155161000,-179.52361328,0.00028365,2]
[423475662,1780155161000,-304.1947826,0.00028365,2]
[423475667,1780155161000,-158.86010291,0.00028368,2]
[423475665,1780155161000,-158.66594189,0.00028365,2]
[423475666,1780155161000,-205.97522697,0.00028365,2]
[423475692,1780155161000,-500.0,0.00028767,120]
[423475668,1780155161000,-153.48407166,0.00028368,2]
[423475670,1780155161000,-208.89600329,0.00028368,2]
[423475672,1780155161000,-358.02587278,0.00028368,2]
[423475673,1780155161000,-176.83064221,0.00028372,7]
[423475675,1780155161000,-1229.0,0.00028411,5]
[423475664,1780155161000,-181.1697771,0.00028365,2]
[423475671,1780155161000,-172.81599779,0.00028368,2]
[423475687,1780155161000,-152.0,0.00028688,19]
[423475677,1780155161000,-168.13,0.00028493,2]
[423475686,1780155161000,-2140.17,0.00028677,7]
[423475685,1780155161000,-2140.64,0.00028677,7]
[423475682,1780155161000,-2140.17,0.00028516,30]
[423475683,1780155161000,-200.0,0.00028644,2]
[423475684,1780155161000,-1338.33626677,0.00028646,15]
[423475679,1780155161000,-169.5,0.00028506,3]
[423475678,1780155161000,-500.000001,0.000285,2]
[423475681,1780155161000,-2140.64,0.00028516,30]
[423475674,1780155161000,-165.02368299,0.00028372,7]
[423475676,1780155161000,-500.0,0.00028424,16]
[423475680,1780155161000,-169.5,0.00028506,3]
[423475756,1780155162000,-1806.36285849,0.00029,2]
[423475761,1780155162000,-930.0011674,0.00029,2]
[423475760,1780155162000,-930.02334798,0.00029,2]
[423475753,1780155162000,-311.95,0.00029,2]
[423475752,1780155162000,-311.96,0.00029,2]
[423475746,1780155162000,-1001.6,0.00029,2]
[423475762,1780155162000,-930.00005837,0.00029,2]
[423475758,1780155162000,-939.3391916,0.00029,2]
[423475763,1780155162000,-930.00000292,0.00029,2]
[423475749,1780155162000,-983.0,0.00029,2]
[423475764,1780155162000,-930.00000015,0.00029,2]
[423475755,1780155162000,-7925.0,0.00029,2]
[423475771,1780155162000,-2500.0,0.00029,2]
[423475759,1780155162000,-930.46695958,0.00029,2]
[423475757,1780155162000,-1116.78383195,0.00029,2]
[423475767,1780155162000,-2000.0,0.00029,2]
[423475769,1780155162000,-1000.0,0.00029,2]
[423475766,1780155162000,-6076.0,0.00029,2]
[423475768,1780155162000,-929.99999999,0.00029,2]
[423475774,1780155162000,-2500.0,0.00029,2]
[423475772,1780155162000,-1000.0,0.00029,2]
[423475773,1780155162000,-284.96809043,0.00029,2]
[423475776,1780155162000,-1000.18,0.00029,2]
[423475765,1780155162000,-930.00000001,0.00029,2]
[423475770,1780155162000,-2500.0,0.00029,2]
[423475748,1780155162000,-439.0843352,0.00029,2]
[423475754,1780155162000,-1020.85,0.00029,2]
[423475750,1780155162000,-311.95,0.00029,2]
[423475731,1780155162000,-5115.4,0.00029,2]
[423475747,1780155162000,-1748.8965626,0.00029,2]
[423475775,1780155162000,-2500.0,0.00029,2]
[423475728,1780155162000,-1013.15,0.00029,2]
[423475719,1780155162000,-1443.48,0.00029,2]
[423475721,1780155162000,-1000.0,0.00029,2]
[423475722,1780155162000,-542.03489599,0.00029,2]
[423475726,1780155162000,-300.0,0.00029,2]
[423475720,1780155162000,-561.57,0.00029,2]
[423475723,1780155162000,-643.98489832,0.00029,2]
[423475727,1780155162000,-1569.0,0.00029,2]
[423475724,1780155162000,-510.66835475,0.00029,2]
[423475725,1780155162000,-5000.0,0.00029,2]
[423475730,1780155162000,-6345.83,0.00029,2]
[423475740,1780155162000,-195.48,0.00029,2]
[423475729,1780155162000,-3238.66582057,0.00029,2]
[423475735,1780155162000,-10000.0,0.00029,2]
[423475738,1780155162000,-10000.0,0.00029,2]
[423475734,1780155162000,-10000.0,0.00029,2]
[423475737,1780155162000,-10000.0,0.00029,2]
[423475732,1780155162000,-1103.0,0.00029,2]
[423475733,1780155162000,-2086.0,0.00029,2]
[423475736,1780155162000,-10000.0,0.00029,2]
[423475739,1780155162000,-10000.0,0.00029,2]
[423475742,1780155162000,-76619.36389828,0.00029,2]
[423475743,1780155162000,-2341.8691154,0.00029,2]
[423475741,1780155162000,-4336.64,0.00029,2]
[423475744,1780155162000,-2355.7607512,0.00029,3]
[423475745,1780155162000,-1000.0,0.00029,2]
[423475751,1780155162000,-311.95,0.00029,2]
[423475785,1780155162000,-700.0,0.00029,2]
[423475778,1780155162000,-2416.35,0.00029,2]
[423475787,1780155162000,-700.0,0.00029,2]
[423475808,1780155162000,-700.0,0.00029,2]
[423475809,1780155162000,-700.0,0.00029,2]
[423475812,1780155162000,-700.0,0.00029,2]
[423475814,1780155162000,-700.0,0.00029,2]
[423475817,1780155162000,-700.0,0.00029,2]
[423475815,1780155162000,-700.0,0.00029,2]
[423475819,1780155162000,-700.0,0.00029,2]
[423475816,1780155162000,-700.0,0.00029,2]
[423475820,1780155162000,-700.0,0.00029,2]
[423475822,1780155162000,-700.0,0.00029,2]
[423475818,1780155162000,-700.0,0.00029,2]
[423475821,1780155162000,-700.0,0.00029,2]
[423475823,1780155162000,-700.0,0.00029,2]
[423475826,1780155162000,-700.0,0.00029,2]
[423475836,1780155162000,-1000.0,0.00029,2]
[423475828,1780155162000,-700.0,0.00029,2]
[423475837,1780155162000,-1000.0,0.00029,2]
[423475827,1780155162000,-700.0,0.00029,2]
[423475829,1780155162000,-700.0,0.00029,2]
[423475833,1780155162000,-638.59,0.00029,2]
[423475825,1780155162000,-700.0,0.00029,2]
[423475831,1780155162000,-500.0,0.00029,2]
[423475830,1780155162000,-700.0,0.00029,2]
[423475835,1780155162000,-1002.05,0.00029,30]
[423475832,1780155162000,-1000.0,0.00029,2]
[423475834,1780155162000,-2500.0,0.00029,2]
[423475838,1780155162000,-1000.0,0.00029,2]
[423475807,1780155162000,-700.0,0.00029,2]
[423475811,1780155162000,-700.0,0.00029,2]
[423475824,1780155162000,-700.0,0.00029,2]
[423475810,1780155162000,-700.0,0.00029,2]
[423475786,1780155162000,-700.0,0.00029,2]
[423475806,1780155162000,-700.0,0.00029,2]
[423475781,1780155162000,-640.47,0.00029,2]
[423475788,1780155162000,-700.0,0.00029,2]
[423475789,1780155162000,-700.0,0.00029,2]
[423475780,1780155162000,-640.5,0.00029,2]
[423475783,1780155162000,-639.12,0.00029,2]
[423475777,1780155162000,-211.0,0.00029,2]
[423475779,1780155162000,-637.76,0.00029,2]
[423475784,1780155162000,-700.0,0.00029,2]
[423475790,1780155162000,-700.0,0.00029,2]
[423475792,1780155162000,-700.0,0.00029,2]
[423475791,1780155162000,-700.0,0.00029,2]
[423475799,1780155162000,-700.0,0.00029,2]
[423475782,1780155162000,-639.79,0.00029,2]
[423475805,1780155162000,-700.0,0.00029,2]
[423475800,1780155162000,-700.0,0.00029,2]
[423475802,1780155162000,-700.0,0.00029,2]
[423475803,1780155162000,-700.0,0.00029,2]
[423475813,1780155162000,-700.0,0.00029,2]
[423475804,1780155162000,-700.0,0.00029,2]
[423475794,1780155162000,-700.0,0.00029,2]
[423475795,1780155162000,-700.0,0.00029,2]
[423475801,1780155162000,-700.0,0.00029,2]
[423475796,1780155162000,-700.0,0.00029,2]
[423475798,1780155162000,-700.0,0.00029,2]
[423475797,1780155162000,-700.0,0.00029,2]
[423475793,1780155162000,-700.0,0.00029,2]
[423475883,1780155163000,-1356.0,0.00029011,2]
[423475881,1780155163000,-1272.0,0.00029011,2]
[423475889,1780155163000,-1080.0,0.00029172,7]
[423475879,1780155163000,-316.92418714,0.00029,2]
[423475878,1780155163000,-2014.53324,0.00029,2]
[423475869,1780155163000,-158.0,0.00029,2]
[423475868,1780155163000,-158.0,0.00029,2]
[423475877,1780155163000,-2014.53324,0.00029,2]
[423475876,1780155163000,-2014.53324,0.00029,2]
[423475875,1780155163000,-2014.53324,0.00029,2]
[423475884,1780155163000,-200.05,0.000291,2]
[423475873,1780155163000,-2140.25,0.00029,30]
[423475880,1780155163000,-525.0,0.00029011,2]
[423475894,1780155163000,-936.96,0.000292,2]
[423475882,1780155163000,-1226.0,0.00029011,2]
[423475890,1780155163000,-1136.05,0.00029172,7]
[423475888,1780155163000,-1101.23,0.00029172,7]
[423475887,1780155163000,-1154.57,0.0002917,7]
[423475886,1780155163000,-930.93,0.0002917,7]
[423475891,1780155163000,-846.98,0.00029172,7]
[423475899,1780155163000,-303.0,0.0002927,7]
[423475895,1780155163000,-228.74,0.000292,2]
[423475900,1780155163000,-500.0,0.00029276,18]
[423475902,1780155163000,-45053.6422778,0.00029427,2]
[423475897,1780155163000,-351.21792606,0.00029224,30]
[423475892,1780155163000,-2166.65,0.000292,2]
[423475866,1780155163000,-158.0,0.00029,2]
[423475885,1780155163000,-402.87,0.000291,2]
[423475870,1780155163000,-158.0,0.00029,2]
[423475842,1780155163000,-156.0,0.00029,2]
[423475867,1780155163000,-158.0,0.00029,2]
[423475840,1780155163000,-1000.0,0.00029,2]
[423475901,1780155163000,-1543.0007838,0.00029427,2]
[423475843,1780155163000,-156.0,0.00029,2]
[423475841,1780155163000,-156.0,0.00029,2]
[423475848,1780155163000,-2140.67,0.00029,30]
[423475845,1780155163000,-1000.0,0.00029,2]
[423475844,1780155163000,-1000.0,0.00029,2]
[423475846,1780155163000,-636.98,0.00029,2]
[423475850,1780155163000,-156.0,0.00029,2]
[423475851,1780155163000,-156.0,0.00029,2]
[423475847,1780155163000,-526.60949667,0.00029,2]
[423475849,1780155163000,-161.0,0.00029,2]
[423475853,1780155163000,-646.13,0.00029,8]
[423475872,1780155163000,-332.92625813,0.00029,2]
[423475864,1780155163000,-158.0,0.00029,2]
[423475855,1780155163000,-646.13,0.00029,8]
[423475852,1780155163000,-156.0,0.00029,2]
[423475856,1780155163000,-156.0,0.00029,2]
[423475854,1780155163000,-156.0,0.00029,2]
[423475858,1780155163000,-156.0,0.00029,2]
[423475861,1780155163000,-158.0,0.00029,2]
[423475857,1780155163000,-646.13,0.00029,9]
[423475860,1780155163000,-158.0,0.00029,2]
[423475862,1780155163000,-158.0,0.00029,2]
[423475859,1780155163000,-646.13,0.00029,10]
[423475871,1780155163000,-3230.60054898,0.00029,2]
[423475874,1780155163000,-2014.53324,0.00029,2]
[423475865,1780155163000,-158.0,0.00029,2]
[423475863,1780155163000,-158.0,0.00029,2]
[423475898,1780155163000,-152.0,0.00029232,20]
[423475839,1780155163000,-500.0,0.00029,2]
[423475893,1780155163000,-433.34,0.000292,2]
[423475937,1780155163000,-414.91976869,0.00029685,7]
[423475930,1780155163000,-338.82137199,0.00029684,7]
[423475932,1780155163000,-174.47523396,0.00029685,7]
[423475936,1780155163000,-354.02749078,0.00029685,7]
[423475940,1780155163000,-241.13361198,0.00029685,7]
[423475944,1780155163000,-300.99596558,0.00029685,7]
[423475943,1780155163000,-305.49452106,0.00029685,7]
[423475941,1780155163000,-411.11476548,0.00029685,7]
[423475942,1780155163000,-340.8236082,0.00029685,7]
[423475951,1780155163000,-1879.0,0.00029693,30]
[423475945,1780155163000,-434.89067663,0.00029685,7]
[423475950,1780155163000,-1861.0,0.00029693,30]
[423475947,1780155163000,-1966.0,0.00029693,30]
[423475938,1780155163000,-394.28971165,0.00029685,7]
[423475949,1780155163000,-480.0,0.00029693,30]
[423475948,1780155163000,-467.0,0.00029693,30]
[423475953,1780155163000,-174.16740089,0.00029695,2]
[423475952,1780155163000,-306.16893455,0.00029695,2]
[423475963,1780155163000,-382.43300543,0.00029695,2]
[423475955,1780155163000,-328.77680227,0.00029695,2]
[423475954,1780155163000,-344.51120762,0.00029695,2]
[423475959,1780155163000,-381.35810005,0.00029695,2]
[423475956,1780155163000,-385.17545348,0.00029695,2]
[423475958,1780155163000,-231.92357422,0.00029695,2]
[423475961,1780155163000,-413.69567188,0.00029695,2]
[423475962,1780155163000,-350.22762953,0.00029695,2]
[423475957,1780155163000,-591.70743303,0.00029695,2]
[423475903,1780155163000,-654.1850165,0.00029427,2]
[423475946,1780155163000,-317.52199663,0.00029685,7]
[423475939,1780155163000,-404.50989122,0.00029685,7]
[423475960,1780155163000,-168.7267442,0.00029695,2]
[423475931,1780155163000,-176.47010589,0.00029684,7]
[423475896,1780155163000,-200.0,0.0002922,2]
[423475912,1780155163000,-399.40137145,0.00029671,2]
[423475910,1780155163000,-372.86723845,0.00029671,2]
[423475914,1780155163000,-220.18842306,0.0002968,7]
[423475908,1780155163000,-369.37901323,0.00029522,60]
[423475911,1780155163000,-354.70690029,0.00029671,2]
[423475906,1780155163000,-1513.705876,0.000295,2]
[423475915,1780155163000,-309.05424705,0.0002968,7]
[423475929,1780155163000,-502.0,0.00029684,30]
[423475905,1780155163000,-171.411096,0.00029427,2]
[423475909,1780155163000,-351.32141878,0.00029669,2]
[423475904,1780155163000,-7511.9271178,0.00029427,2]
[423475913,1780155163000,-328.54434891,0.00029671,2]
[423475921,1780155163000,-200.21566514,0.0002968,7]
[423475907,1780155163000,-1229.0,0.0002952,6]
[423475916,1780155163000,-187.37709945,0.0002968,7]
[423475917,1780155163000,-333.44070114,0.0002968,7]
[423475933,1780155163000,-304.56936387,0.00029685,7]
[423475934,1780155163000,-411.62118709,0.00029685,7]
[423475927,1780155163000,-1314.0,0.00029684,30]
[423475928,1780155163000,-675.0,0.00029684,30]
[423475924,1780155163000,-800.0,0.00029684,30]
[423475925,1780155163000,-414.0,0.00029684,30]
[423475918,1780155163000,-324.07413425,0.0002968,7]
[423475920,1780155163000,-375.50380206,0.0002968,7]
[423475923,1780155163000,-653.0,0.00029683,30]
[423475922,1780155163000,-150.04884611,0.00029681,2]
[423475926,1780155163000,-1342.0,0.00029684,30]
[423475919,1780155163000,-318.17527444,0.0002968,7]
[423475935,1780155163000,-185.27180721,0.00029685,2]
[423476005,1780155164000,-13790.3761793,0.0003,10]
[423476010,1780155164000,-200.0,0.0003,11]
[423476003,1780155164000,-1000.0,0.0003,2]
[423476014,1780155164000,-2871.22,0.0003,7]
[423476012,1780155164000,-200.0,0.0003,11]
[423475999,1780155164000,-1055.53480841,0.0003,7]
[423476000,1780155164000,-464.54876939,0.0003,7]
[423476001,1780155164000,-590.98603903,0.0003,7]
[423475996,1780155164000,-587.29129787,0.0003,4]
[423475990,1780155164000,-14712.28151701,0.000299,2]
[423475997,1780155164000,-1000.0,0.0003,2]
[423476009,1780155164000,-200.0,0.0003,11]
[423476006,1780155164000,-3001.0,0.0003,3]
[423476020,1780155164000,-2000.0,0.0003,120]
[423476007,1780155164000,-10636.88093012,0.0003,5]
[423476002,1780155164000,-1000.0,0.0003,2]
[423476011,1780155164000,-200.0,0.0003,11]
[423476004,1780155164000,-1000.0,0.0003,2]
[423476008,1780155164000,-6000.0,0.0003,3]
[423476026,1780155164000,-2000.0,0.0003,120]
[423476016,1780155164000,-1000.0,0.0003,120]
[423476015,1780155164000,-1450.91,0.0003,7]
[423476019,1780155164000,-2000.0,0.0003,120]
[423476021,1780155164000,-2000.0,0.0003,120]
[423476017,1780155164000,-2000.0,0.0003,120]
[423476022,1780155164000,-2000.0,0.0003,120]
[423475998,1780155164000,-165.9589188,0.0003,2]
[423476013,1780155164000,-327.059999,0.0003,11]
[423475995,1780155164000,-1850.5020644,0.0003,2]
[423475979,1780155164000,-345.63199557,0.00029697,2]
[423475992,1780155164000,-1000.0,0.0003,2]
[423476018,1780155164000,-2000.0,0.0003,120]
[423475974,1780155164000,-317.72020582,0.00029697,2]
[423475965,1780155164000,-534.38989027,0.00029695,2]
[423475966,1780155164000,-322.34316622,0.00029695,2]
[423475975,1780155164000,-306.96814333,0.00029697,2]
[423475970,1780155164000,-362.33955421,0.00029695,2]
[423475967,1780155164000,-359.04722657,0.00029695,2]
[423475969,1780155164000,-151.20797762,0.00029695,2]
[423475968,1780155164000,-608.38956521,0.00029695,2]
[423475972,1780155164000,-317.33188379,0.00029695,2]
[423475971,1780155164000,-638.7908961,0.00029695,2]
[423475973,1780155164000,-411.95045393,0.00029695,2]
[423475976,1780155164000,-330.6726521,0.00029697,2]
[423475977,1780155164000,-417.79200659,0.00029697,2]
[423475986,1780155164000,-152.0,0.00029775,21]
[423475980,1780155164000,-716.05174557,0.00029697,2]
[423475981,1780155164000,-1000.0,0.000297,7]
[423475978,1780155164000,-242.35961038,0.00029697,2]
[423475985,1780155164000,-152.55379499,0.00029701,7]
[423475987,1780155164000,-800.0,0.00029796,60]
[423475983,1780155164000,-195.09795569,0.00029701,7]
[423475988,1780155164000,-2900.0,0.00029796,60]
[423475982,1780155164000,-353.66128442,0.00029701,7]
[423475984,1780155164000,-330.04736597,0.00029701,7]
[423475989,1780155164000,-50339.39,0.000298,14]
[423475993,1780155164000,-6541.15423561,0.0003,2]
[423475994,1780155164000,-1123.88887539,0.0003,2]
[423475991,1780155164000,-241.3416332,0.0002999,2]
[423476024,1780155164000,-2000.0,0.0003,120]
[423475964,1780155164000,-180.71761074,0.00029695,2]
[423476023,1780155164000,-2000.0,0.0003,120]
[423476064,1780155164000,-10000.0,0.000301,120]
[423476057,1780155164000,-10000.0,0.000301,120]
[423476060,1780155164000,-10000.0,0.000301,120]
[423476063,1780155164000,-10000.0,0.000301,120]
[423476058,1780155164000,-10000.0,0.000301,120]
[423476059,1780155164000,-10000.0,0.000301,120]
[423476073,1780155164000,-2000.0,0.0003013,2]
[423476069,1780155164000,-645.4828371,0.0003013,2]
[423476067,1780155164000,-1093.0549929,0.0003013,2]
[423476071,1780155164000,-302.20023713,0.0003013,2]
[423476074,1780155164000,-175769.81736187,0.0003013,7]
[423476065,1780155164000,-10000.0,0.000301,120]
[423476066,1780155164000,-10000.0,0.000301,120]
[423476055,1780155164000,-10000.0,0.000301,120]
[423476075,1780155164000,-1327.79111958,0.0003013,120]
[423476072,1780155164000,-532522.03742642,0.0003013,7]
[423476076,1780155164000,-151.0,0.00030137,7]
[423476068,1780155164000,-364.57,0.0003013,15]
[423476079,1780155164000,-812.48,0.00030137,2]
[423476077,1780155164000,-151.0,0.00030137,7]
[423476084,1780155164000,-230.0,0.00030137,120]
[423476078,1780155164000,-201.789732,0.00030137,7]
[423476080,1780155164000,-200.0,0.00030137,2]
[423476081,1780155164000,-170.24,0.00030137,14]
[423476082,1780155164000,-170.24,0.00030137,14]
[423476083,1780155164000,-170.25,0.00030137,14]
[423476025,1780155164000,-2000.0,0.0003,120]
[423476085,1780155164000,-230.0,0.00030137,120]
[423476070,1780155164000,-205.34319924,0.0003013,2]
[423476061,1780155164000,-10000.0,0.000301,120]
[423476086,1780155164000,-230.0,0.00030137,120]
[423476062,1780155164000,-10000.0,0.000301,120]
[423476053,1780155164000,-10000.0,0.000301,120]
[423476028,1780155164000,-650.0,0.0003,2]
[423476029,1780155164000,-200.0,0.0003,2]
[423476032,1780155164000,-1500.0,0.0003,2]
[423476035,1780155164000,-1229.0,0.00030075,7]
[423476038,1780155164000,-10000.0,0.000301,120]
[423476036,1780155164000,-1004.07,0.00030096,120]
[423476033,1780155164000,-200.0,0.0003,2]
[423476030,1780155164000,-200.0,0.0003,2]
[423476039,1780155164000,-10000.0,0.000301,120]
[423476034,1780155164000,-200.0,0.0003,2]
[423476031,1780155164000,-200.0,0.0003,2]
[423476037,1780155164000,-2947.968,0.000301,90]
[423476040,1780155164000,-10000.0,0.000301,120]
[423476027,1780155164000,-150.0,0.0003,120]
[423476051,1780155164000,-10000.0,0.000301,120]
[423476054,1780155164000,-10000.0,0.000301,120]
[423476056,1780155164000,-10000.0,0.000301,120]
[423476049,1780155164000,-10000.0,0.000301,120]
[423476052,1780155164000,-10000.0,0.000301,120]
[423476044,1780155164000,-10000.0,0.000301,120]
[423476041,1780155164000,-10000.0,0.000301,120]
[423476048,1780155164000,-10000.0,0.000301,120]
[423476047,1780155164000,-10000.0,0.000301,120]
[423476046,1780155164000,-10000.0,0.000301,120]
[423476050,1780155164000,-10000.0,0.000301,120]
[423476045,1780155164000,-10000.0,0.000301,120]
[423476043,1780155164000,-10000.0,0.000301,120]
[423476042,1780155164000,-10000.0,0.000301,120]
[423476126,1780155165000,-477.26291166,0.00030566,7]
[423476122,1780155165000,-374.75419891,0.00030566,7]
[423476121,1780155165000,-162.21557078,0.00030566,7]
[423476131,1780155165000,-508.23205799,0.0003057,7]
[423476119,1780155165000,-463.58137057,0.00030566,7]
[423476129,1780155165000,-400.43133027,0.00030566,7]
[423476120,1780155165000,-152.41257321,0.00030566,7]
[423476124,1780155165000,-500.16105171,0.00030566,7]
[423476125,1780155165000,-275.68661596,0.00030566,7]
[423476118,1780155165000,-440.37684611,0.00030566,7]
[423476130,1780155165000,-300.09769221,0.00030567,2]
[423476127,1780155165000,-159.42494355,0.00030566,7]
[423476134,1780155165000,-207.00428148,0.0003057,7]
[423476123,1780155165000,-486.11120137,0.00030566,7]
[423476135,1780155165000,-348.95046792,0.00030571,7]
[423476137,1780155165000,-617.43178064,0.00030571,7]
[423476132,1780155165000,-245.72979678,0.0003057,7]
[423476133,1780155165000,-352.94021178,0.0003057,7]
[423476136,1780155165000,-456.85404581,0.00030571,7]
[423476138,1780155165000,-370.54361442,0.00030571,2]
[423476141,1780155165000,-162.01615878,0.00030571,7]
[423476142,1780155165000,-622.37965304,0.00030571,7]
[423476143,1780155165000,-458.24178159,0.00030571,7]
[423476139,1780155165000,-531.04123617,0.00030571,7]
[423476117,1780155165000,-1970.92,0.00030564,7]
[423476128,1780155165000,-563.2557031,0.00030566,7]
[423476116,1780155165000,-492.81652336,0.00030557,2]
[423476101,1780155165000,-1045.53,0.00030272,7]
[423476115,1780155165000,-599.10205717,0.00030557,2]
[423476088,1780155165000,-199.16845589,0.00030137,2]
[423476087,1780155165000,-230.0,0.00030137,120]
[423476090,1780155165000,-216.33,0.00030137,43]
[423476089,1780155165000,-398.33691177,0.00030137,2]
[423476091,1780155165000,-351.21792606,0.00030137,30]
[423476092,1780155165000,-309.6,0.00030137,120]
[423476093,1780155165000,-944.44143586,0.00030137,2]
[423476100,1780155165000,-1066.09,0.00030272,7]
[423476094,1780155165000,-500.0,0.00030155,19]
[423476095,1780155165000,-15807.77177437,0.000302,2]
[423476097,1780155165000,-270.01,0.00030207,120]
[423476099,1780155165000,-1117.72,0.0003027,7]
[423476114,1780155165000,-532.06035044,0.00030557,2]
[423476096,1780155165000,-1105.956265,0.000302,2]
[423476109,1780155165000,-500.0,0.000305,14]
[423476102,1780155165000,-1099.79,0.00030272,7]
[423476108,1780155165000,-600.0,0.00030411,120]
[423476112,1780155165000,-559.30085767,0.00030551,2]
[423476110,1780155165000,-418.0,0.00030508,7]
[423476104,1780155165000,-152.0,0.00030319,22]
[423476111,1780155165000,-156.0,0.00030542,3]
[423476113,1780155165000,-526.98212817,0.00030554,2]
[423476107,1780155165000,-309.6,0.00030384,120]
[423476105,1780155165000,-150.0,0.00030341,2]
[423476103,1780155165000,-471.33461759,0.00030275,2]
[423476106,1780155165000,-261.07,0.00030361,120]
[423476098,1780155165000,-2671.5,0.00030239,2]
[423476140,1780155165000,-165.50411573,0.00030571,7]
[423476146,1780155165000,-482.26722397,0.00030571,7]
[423476155,1780155165000,-597.50536766,0.00030581,2]
[423476179,1780155165000,-154.4924688,0.00030581,2]
[423476178,1780155165000,-538.57083985,0.00030581,2]
[423476180,1780155165000,-250.86287872,0.00030581,2]
[423476177,1780155165000,-483.51474933,0.00030581,2]
[423476188,1780155165000,-543.50933131,0.00030581,2]
[423476190,1780155165000,-152.36385033,0.00030581,2]
[423476192,1780155165000,-617.9256809,0.00030581,2]
[423476183,1780155165000,-302.41595523,0.00030581,2]
[423476191,1780155165000,-243.57595432,0.00030581,2]
[423476185,1780155165000,-220.80687902,0.00030581,2]
[423476187,1780155165000,-475.99782568,0.00030581,2]
[423476184,1780155165000,-294.03009527,0.00030581,2]
[423476193,1780155165000,-476.58030873,0.00030584,2]
[423476182,1780155165000,-912.58434781,0.00030581,2]
[423476186,1780155165000,-195.05673955,0.00030581,2]
[423476189,1780155165000,-958.18634414,0.00030581,2]
[423476195,1780155165000,-460.45221499,0.00030584,2]